Cogmind - Beta 9.6 @@@ ROGUE MODE // 2020.05.14 @ 09:13:52 Player: Vectis Result: Destroyed by Y-45 Defender with Beam Rifle Performance ------------- Evolutions (1) 500 Regions Visited (2) 400 Robots Destroyed (16) 80 Value Destroyed (115) 115 Prototype IDs (0) 0 Alien Tech Used (0) 0 Bonus (0) 0 TOTAL SCORE: 1095 Bonus ------- None Cogmind --------- Core Integrity 0/400 Matter 226/300 Energy 99/100 System Corruption 0% Temperature Cool (9) Movement Core (50) Location -9/Materials Parts ------- > --- POWER (1) -------- (None) > --- PROPULSION (4) --- (None) > --- UTILITY (2) ------ (None) > --- WEAPON (2) ------- (None) > --- INVENTORY (4) ---- Medium Matter Pod (100) Hacking Suite EM Pulse Gun Peak State ------------ > --- POWER ------------ Light Ion Engine > --- PROPULSION ------- VTOL Module VTOL Module VTOL Module VTOL Module > --- UTILITY ---------- Small Storage Unit Propulsion Shielding > --- WEAPON ----------- Light EM Pulse Cannon Light EM Pulse Cannon > --- INVENTORY -------- Medium Matter Pod Hacking Suite EM Pulse Gun [Rating: 15] Favorites ----------- Power Ion Engine Engine Ion Engine Propulsion Aluminum Leg Leg Aluminum Leg Flight Unit VTOL Module Utility Small Storage Unit Storage Small Storage Unit Processor Seismic Analyzer Protection Propulsion Shielding Weapon EM Pulse Gun Energy Gun EM Pulse Gun Energy Cannon Light EM Pulse Cannon Impact Weapon Maul Build | -11 -10 -9 ------- Run | Scr Mat Mat Slots Evolved 2 | . . 2 Power . | . . . Propulsion 2 | . . 2 Utility . | . . . Weapon . | . . . Parts Attached 18 | 7 5 6 Power 2 | 1 1 . Engine 2 | 1 1 . Core . | . . . Reactor . | . . . Propulsion 7 | 2 2 3 Treads . | . . . Leg 2 | 2 . . Wheel . | . . . Hover . | . . . Flight 5 | . 2 3 Utility 3 | 2 1 . Device . | . . . Storage 1 | 1 . . Processor 1 | 1 . . Hackware . | . . . Protection 1 | . 1 . Artifact . | . . . Weapon 6 | 2 1 3 Energy Gun 3 | 2 1 . Energy Cannon 2 | . . 2 Ballistic Gun . | . . . Ballistic Cannon . | . . . Launcher . | . . . Special Weapon . | . . . Impact Weapon 1 | . . 1 Slashing Weapon . | . . . Piercing Weapon . | . . . Special Melee Weapon . | . . . Unidentified Prototypes . | . . . Parts Lost 4 | . . 4 Power . | . . . Propulsion 4 | . . 4 Utility . | . . . Weapon . | . . . Highest Loss Streak 2 | . . 2 Average Slot Usage (%) 76 | . 93 64 Engine 10 | . 14 8 Leg 5 | . 14 . Flight 20 | . 12 26 Storage 11 | . 14 9 Protection 9 | . 12 7 Energy Gun 9 | . 23 . Energy Cannon 6 | . . 10 Naked Turns 31 | . . 31 Heaviest Build 16 | 13 14 16 Greatest Support 20 | 20 20 20 Greatest Overweight (x) 2 | . 2 1 Average Overweight (x) . | . . . Largest Inventory Capacity 6 | 6 6 6 Average Capacity 5 | 5 6 5 Most Carried 6 | 6 6 5 Average Carried 4 | 5 5 3 Final Capacity 6 | 6 6 4 Final Carried 6 | 6 6 3 Class Distribution -------------------- 93% | Mutant 6% | Sprinter Dominant Class ---------------- Mutant | -10/Materials Mutant | -9/Materials Resources | -11 -10 -9 ----------- Run | Scr Mat Mat Matter Collected 337 | 321 16 . Remotely . | . . . Salvage Created 377 | 348 29 . Parts 35 | 29 6 . Haulers Intercepted . | . . . Recyclers Shooed . | . . . Parts Field Recycled . | . . . Retrieved Matter . | . . . Parts Self-Destructed . | . . . Prevented . | . . . Kills | -11 -10 -9 ------- Run | Scr Mat Mat Combat Hostiles Destroyed . | . . . Classes Destroyed 4 | 3 1 . Worker 4 | 4 . . Tunneler 9 | 9 . . Recycler 1 | 1 . . Operator 2 | . 2 . Best Kill Streak 4 | 4 2 . Combat Bots Only . | . . . Max Kills in Single Turn 3 | 3 1 . Gunslinging . | . . . Exploded . | . . . Melee . | . . . Uniques/NPCs Destroyed . | . . . Combat | -11 -10 -9 -------- Run | Scr Mat Mat Damage Taken 756 | 21 11 724 Core 433 | 21 . 412 Absorbed by Shields . | . . . Core Remaining (%) 91 | 91 91 . Volleys Fired 47 | 40 6 1 Largest 2 | 2 2 1 Hottest 90 | 90 90 56 Shots Fired 91 | 80 10 1 Gun 90 | 80 10 . Cannon 1 | . . 1 Launcher . | . . . Special . | . . . Kinetic . | . . . Thermal 44 | 40 4 . Explosive . | . . . Electromagnetic 47 | 40 6 1 Robot Hit Streak 8 | 8 2 . Robot Miss Streak 4 | 4 3 1 Penetration Max . | . . . Secondary Targets . | . . . Shots Hit Robots 48 | 44 4 . Core Hits 17 | 15 2 . Critical Hits . | . . . Critical Kills . | . . . Critical Parts Destroyed . | . . . Melee Attacks 3 | . . 3 Impact 3 | . . 3 Slashing . | . . . Piercing . | . . . Sneak Attacks . | . . . Combat Hostiles . | . . . Follow-up Attacks . | . . . Damage Inflicted 679 | 633 46 . Guns 496 | 450 46 . Cannons . | . . . Explosions 183 | 183 . . Melee . | . . . Ramming . | . . . Kinetic . | . . . Thermal 370 | 357 13 . Explosive . | . . . Electromagnetic 309 | 276 33 . Impact . | . . . Slashing . | . . . Piercing . | . . . Highest Corruption . | . . . Average Corruption . | . . . Corruption Purged . | . . . Overload Shots . | . . . Overflow Damage . | . . . Projectiles . | . . . Explosions . | . . . Melee . | . . . Knockbacks . | . . . Impact . | . . . Kinetic . | . . . Secondary . | . . . Self-Inflicted Damage 21 | 21 . . Shots 1 | 1 . . Rammed . | . . . Targets Rammed . | . . . Kicked . | . . . Crushed . | . . . Highest Temperature 210 | 210 72 10 Average Temperature 62 | 68 32 4 Received Heat Transfer 162 | . 6 156 Siege Activations . | . . . Robots Corrupted . | . . . Combat Hostiles . | . . . Parts Fried . | . . . Impact Corruptions . | . . . Robots Melted . | . . . Combat Hostiles . | . . . Parts Melted . | . . . Heat Transferred 755 | 718 37 . Parts Sabotaged . | . . . Parts Stolen . | . . . Parts Stripped . | . . . Power Chain Reactions 2 | 2 . . Missiles Intercepted . | . . . Alert | -11 -10 -9 ------- Run | Scr Mat Mat Peak Influence 124 | 65 58 124 Average Influence 39 | 27 26 84 Maximum Alert Level . | . . . Low Security (%) 100 | 100 100 100 Level 1 . | . . . Level 2 . | . . . Level 3 . | . . . Level 4 . | . . . Level 5 . | . . . High Security . | . . . Max Security . | . . . Squads Dispatched 4 | . 3 1 Investigation . | . . . Extermination . | . . . Reinforcement 4 | . 3 1 Assault . | . . . Garrison . | . . . Intercept . | . . . Construction Impeded . | . . . Haulers Reinforced . | . . . Stealth | -11 -10 -9 --------- Run | Scr Mat Mat Distress Signals 4 | . 1 3 Communications Jammed . | . . . Distress Signals . | . . . Times Spotted 36 | . 7 29 Peak Tracking Total 16 | . 4 16 Tactical Retreats 4 | . 1 3 Traps | -11 -10 -9 ------- Run | Scr Mat Mat Traps Triggered 1 | . . 1 Indirectly . | . . . Trap Hack Attempts . | . . . Triggered . | . . . Disarmed . | . . . Reprogrammed . | . . . Reused . | . . . Traps Extracted . | . . . Installed . | . . . Triggered . | . . . Machines | -11 -10 -9 ---------- Run | Scr Mat Mat Machines Disabled 1 | . 1 . Max in Single Turn 1 | . 1 . Machines Sabotaged . | . . . Garrisons Compromised . | . . . Overloaded Fab Kills . | . . . Fab Network Shutdowns . | . . . Hacking | -11 -10 -9 --------- Run | Scr Mat Mat Machines Accessed 1 | . . 1 Terminals . | . . . Fabricators . | . . . Repair Stations 1 | . . 1 Recycling Units . | . . . Scanalyzers . | . . . Garrison Access . | . . . Total Hacks 3 | . . 3 Successful 2 | . . 2 Failed 1 | . . 1 Catastrophic . | . . . Database Lockouts . | . . . Manual . | . . . Terminals . | . . . Fabricators . | . . . Repair Stations 3 | . . 3 Recycling Units . | . . . Scanalyzers . | . . . Garrison Access . | . . . Terminal Hacks . | . . . Fabricator Hacks . | . . . Repair Station Hacks 2 | . . 2 Scan Component 1 | . . 1 Repair 1 | . . 1 Recycling Unit Hacks . | . . . Scanalyzer . | . . . Garrison Access Hacks . | . . . Unauthorized Hacks . | . . . Terminals . | . . . Fabricators . | . . . Repair Stations . | . . . Recycling Units . | . . . Scanalyzers . | . . . Garrison Access . | . . . Data Cores Recovered . | . . . Used . | . . . Hacking Detections 1 | . . 1 Full Trace Events . | . . . Feedback Events . | . . . Feedback Blocked . | . . . Robot Schematics Acquired . | . . . Robots Built . | . . . Matter . | . . . Time . | . . . Total Robot Build Rating . | . . . Part Schematics Acquired . | . . . Parts Built . | . . . Matter . | . . . Time . | . . . Total Part Build Rating . | . . . Parts Repaired 1 | . . 1 Time 32 | . . 32 Parts Recycled . | . . . Recycled Matter . | . . . Retrieved Matter . | . . . Retrieved Components . | . . . Parts Scanalyzed . | . . . Part Schematics Acquired . | . . . Parts Damaged . | . . . Bothacking | -11 -10 -9 ------------ Run | Scr Mat Mat Used RIF Installer . | . . . Robots Hacked . | . . . Non-combat . | . . . Combat . | . . . Robot Hacks Applied . | . . . Relay Couplers Released . | . . . Robots Rewired . | . . . Allies Hacked . | . . . Hacks Repelled . | . . . Allies | -11 -10 -9 -------- Run | Scr Mat Mat Total Allies . | . . . Largest Group . | . . . Highest-Rated Group . | . . . Highest-Rated Ally . | . . . Total Orders . | . . . Ally Attacks . | . . . Total Damage . | . . . Kills . | . . . Allies Corrupted . | . . . Allies Melted . | . . . Intel | -11 -10 -9 ------- Run | Scr Mat Mat Robot Analysis Total . | . . . Derelict Logs Recovered . | . . . Drone Launches . | . . . Drone Recoveries . | . . . Exploration | -11 -10 -9 ------------- Run | Scr Mat Mat Turns Passed 817 | 510 128 179 Spaces Moved 683 | 265 137 281 Core 66 | 9 . 57 Treads . | . . . Legs 303 | 256 47 . Wheels . | . . . Hover . | . . . Flight 314 | . 90 224 Fastest Speed 31 | 50 37 31 Average Speed 74 | 117 66 37 Slowest Speed 200 | 120 200 100 Overloaded Moves . | . . . Propulsion Burnouts . | . . . Robots Hopped 9 | . . 9 Cave-ins Triggered . | . . . Exploration Rate (%) 23 | 8 36 27 Regions Visited 2 Branch Regions . Pre-discovered Areas . | . . . Known Exits Taken . | . . . Unknown Exits Taken 2 | 1 1 . Scrap Searched . | . . . Spaces Dug . | . . . Terrain Destroyed 11 | 11 . . Melee . | . . . Projectile . | . . . AOE 11 | 11 . . Actions | -11 -10 -9 --------- Run | Scr Mat Mat Total 886 | 380 166 340 Wait 115 | 61 3 51 Move 663 | 264 136 263 Hop 9 | . . 9 Pick Up 12 | 7 5 . Fast Attach 12 | 7 3 2 Attach 5 | . 1 4 Detach 3 | . 2 1 Swap 1 | . 1 . Drop 16 | 1 9 6 Fire 47 | 40 6 1 Melee 3 | . . 3 Ram . | . . . Kick . | . . . Crush . | . . . Escape Stasis . | . . . Rewire . | . . . Trap . | . . . Miscellaneous . | . . . Route ------- -11/Scrapyard -10/Materials -9/Materials History --------- Turn | Location | Event 7 | -11/Scrapyard | Discovered new exit (range 15) 511 | -11/Scrapyard | Entered Materials 512 | -10/Materials | Build established: Mutant 610 | -10/Materials | Discovered new exit (range 14) 639 | -10/Materials | Entered another Materials area 639 | -9/Materials | Evolved 2 slots: Propulsion x2 678 | -9/Materials | Repaired VTOL Module 788 | -9/Materials | Core integrity fell below 50% 808 | -9/Materials | Core integrity fell below 20% 818 | -9/Materials | Destroyed by Y-45 Defender with Beam Rifle Last Messages --------------- 00691_ W-16 Scout sends out distress signal. 00692_ K-01 Serf collects debris. 00719_ VTOL Module destroyed. 00720_ Dropped Lgt. EM Pulse Cannon. 00724_ W-16 Scout destroyed. 00724_ S-10 Pest destroyed. 00728_ K-01 Serf collects debris. 00732_ W-16 Scout sends out distress signal. 00738_ VTOL Module destroyed. 00738_ Dropped Lgt. EM Pulse Cannon. 00758_ Acquired Maul. 00760_ Dropped Propulsion Shielding. 00778_ VTOL Module destroyed. 00779_ Dropped Lgt. Ion Engine. 00779_ Dropped Maul. 00785_ VTOL Module destroyed. 00787_ Dropped Sml. Storage Unit. 00794_ K-01 Serf collects debris. 00809_ Triggered Blade Trap. 00809_ Massive razor-sharp blades shoot up from within the floor. Map ----- +----------------------------------------------------+ | | | | | ????????????????????????????????????????????? | | ????????????????????????????????????????????? | | ????????????????????????????????????????????? | | ????????????????????????????????????????????? | | ????????????????????????????????????????????? | | ????????????????????????????????????????????? | | ?????????????????????????????????????????#### | | ??????????????????###+??????????????????? # | | ??????????????????? ?????????????????"" # | | ??????????????????? Y ????????????????""" # | | ??????????????????? ???????????????"""" # | | ??????????????????? ????????????# """"" # | | ???????????????????# #????????????# """"" # | | ???????????????????# #????????????# """"" # | | ???????????????????# #????????????# """"" !# | | ???????????????????# #????????????# # | | ???????????????????# #????????????###+##+### | | ???????????????????# #??????????????# | | ???????????????##### #??????????????# | | ???????????????#!! ##+######+###### | | ???????????????#!! #| ######## | | ???????????????#!! # * # # | | ???????????????#!! ###+#### # # # | | ???????????????#!! @ # ?# # # """ + | | ???????????????#!! # ! # + ! # """ # | | ???????????????##### # # # # """ # | | ???????????????????# # """# / # # | | ???????????????????# # """# # ######## | | ???????????????????# # """# # # # | | ???????????????????+ # """# #/#### """ # | | ???????????????????# # ??# ^#??# """ + | | ???????????????????# # "??# #### """ # | | ???????????????????# # "??## / # | | ???????????????????# # "???# ## # | | ???????????????????# # ????# ######### | | ???????????????????? # ????# #???????? | | ????????????????????k ####????# #???????? | | ????????????????????/#????????# #???????? | | ???????????????????? ?????????# #???????? | | ??????????????????????????????# #???????? | | ??????????????????????????????# ???????? | | ??????????????????????????????# #???????? | | ??????????????????????????????# #???????? | | ??????????????????????????????# #???????? | | ??????????????????????????????# ???????? | | ?????????????????????????????? ???????? | | ??????????????????????????????# ???????? | | ??????????????????????????????? """???????? | +----------------------------------------------------+ Best States ------------- Heat Dissipation 28 Energy Generation 10 Energy Capacity 250 Matter Stores 300 Matter Capacity 300 Sight Range 16 Terrain Scan Density 60 Propulsion Shielding 33 Evasion (%) 63 Item Schematics ----------------- None Robot Schematics ------------------ None Fabricated ------------ Nothing Alien Tech Used ----------------- None Achievements -------------- None Challenges ------------ None Game ------ Seed CoreAdvancedGun Manual? 0 Play Time 00:13:33 Cumulative 38.5 hours Start 2020.05.14 @ 09:01:02 End 2020.05.14 @ 09:13:52 Sessions 1 Manual Loads 0 Difficulty Rogue Special Mode None Game No. 15 Rogue 15 Adventurer 0 Explorer 0 Win Type - Total 3 Types 2/0/0/1/0/0/0 Lore% 45 Gallery% 47 Achievement% 42 Wizard Run 0 Options --------- ASCII 1 Keyboard 0 Movement Numpad Keybinds 0 Fullscreen 1 Font 18/SmallcapsGlow Map View 76x50 Tactical HUD 1 Map Filters NONE Filters NONE Steam 1 RUN: 9d905cf4-08c4-4da0-b236-efa3837b25b7